bitfinex/quotes_ETHUSD_20250821
["timestamp","ask_amount","ask_price","bid_price","bid_amount"]
[1755819940917,1.823,4220.5,4220.2,2.36955292]
[1755819941106,1.823,4220.5,4219.8,4.711868]
[1755819941107,1.823,4220.7,4220.4,0.3056]
[1755819941319,4.041,4220.6,4220.5,5.83298751]
[1755819941627,1.823,4220.7,4220.6,5.36933137]
[1755819941796,5.864,4220.7,4220.6,3.13853137]
[1755819941998,5.864,4220.7,4220.6,6.13853137]
[1755819942518,5.864,4220.7,4220.6,3.3056]
[1755819942901,6.161,4220.7,4220.6,3.0]
[1755819943415,5.864,4220.7,4220.6,3.0]
[1755819943621,5.863,4220.7,4220.6,3.3056]
[1755819943790,5.863,4220.7,4220.6,5.67493137]
[1755819943988,5.862,4220.7,4220.6,6.9893321]
[1755819944728,5.863,4220.7,4220.6,6.9893321]
[1755819945614,5.863,4220.7,4220.6,4.15640073]
[1755819945801,5.863,4220.7,4220.6,3.3056]
[1755819946005,5.863,4220.7,4220.6,3.0]
[1755819947749,6.5931,4220.7,4220.6,3.0]
[1755819947924,6.16,4220.7,4220.6,3.0]
[1755819948843,6.16,4220.7,4220.6,3.3056]
[1755819948844,1.823,4220.7,4220.6,3.3056]
[1755819949042,5.861,4220.7,4220.6,6.46909137]
[1755819949229,1.823,4221.4,4220.9,0.66]
[1755819949431,1.823,4221.4,4220.8,2.3692191]
[1755819949432,1.823,4221.4,4221.3,5.67453847]
[1755819949747,5.863,4221.4,4221.3,6.13813847]
[1755819949943,5.863,4221.4,4221.3,6.98885353]
[1755819950239,1.823,4221.4,4221.3,6.98885353]
[1755819950539,5.863,4221.4,4221.3,6.98885353]
[1755819951239,4.04,4221.4,4221.3,6.98885353]
[1755819954145,0.001,4221.7,4221.3,6.52525353]
[1755819954349,0.001,4221.7,4221.6,6.02877013]
[1755819954516,0.001,4221.7,4221.6,6.33437013]
[1755819954714,0.001,4221.7,4221.6,6.79797013]
[1755819955651,0.001,4221.7,4221.6,7.51019313]
[1755819961467,0.001,4221.7,4221.6,7.04659313]
[1755819961667,0.001,4221.7,4221.6,8.464714]
[1755819961896,0.001,4221.7,4221.6,8.928314]
[1755819962690,0.001,4221.7,4221.6,12.967314]
[1755819964448,0.001,4221.7,4221.6,8.464714]
[1755819964643,0.298,4221.7,4221.6,7.499114]
[1755819964848,0.298,4221.7,4221.6,6.08099313]
[1755819965079,0.7311,4221.7,4221.6,6.08099313]
[1755819965386,0.298,4221.7,4221.6,5.36877013]
[1755819965543,0.001,4221.7,4221.6,6.08108113]
[1755819966569,0.7311,4221.7,4221.6,3.712311]
[1755819966772,2.5531,4221.7,4220.6,0.004]
[1755819966971,0.02355063,4221.6,4221.0,0.4331]
[1755819967153,0.45665063,4221.6,4221.1,5.36904441]
[1755819967353,0.297,4221.1,4221.0,2.36909054]
[1755819968782,0.297,4221.1,4221.0,2.3927816]
[1755819969515,0.7635,4221.1,4221.0,0.02369106]
[1755819969803,0.02355063,4221.0,4220.6,0.004]
[1755819970097,0.3,4220.7,4220.6,2.37333137]
[1755819970297,0.3,4220.7,4220.6,0.004]
[1755819970530,1.822,4220.9,4220.6,0.3061]
[1755819970706,5.865,4220.9,4220.8,5.3692191]
[1755819970869,5.865,4220.9,4220.6,0.3061]
[1755819970870,1.822,4220.9,4220.6,5.37332927]
[1755819971070,1.822,4220.9,4220.8,2.3692191]
[1755819972500,1.822,4220.9,4220.8,5.3692191]
[1755819973227,0.001,4221.7,4221.6,2.36877013]
[1755819973372,5.866,4221.7,4221.6,2.36877013]
[1755819974789,6.166,4221.7,4221.6,2.36877013]
[1755819974977,2.123,4221.7,4221.6,2.36877013]
[1755819975178,5.865,4221.7,4221.6,2.36877013]
[1755819975379,6.165,4221.7,4221.5,3.0]
[1755819975619,6.165,4221.7,4220.7,3.0]
[1755819975819,0.4665,4221.6,4221.1,3.08143437]
[1755819976019,5.865,4221.7,4221.2,5.36898977]
[1755819976222,0.3,4221.3,4221.2,2.36898977]
[1755819976527,0.4665,4221.5,4221.3,2.36892424]
[1755819976992,0.7665,4221.4,4221.0,2.36910077]
[1755819977188,0.4665,4221.3,4221.0,2.36910077]
[1755819977413,0.4665,4221.3,4221.1,5.36904862]
[1755819978121,0.3,4221.2,4221.1,5.36904862]
[1755819978534,0.3,4221.2,4221.1,3.0]
[1755819978837,0.7665,4221.2,4221.1,5.36905072]
[1755819979040,0.3,4221.2,4221.1,3.0]
[1755819979196,0.7665,4221.2,4220.9,2.36913324]
[1755819979388,4.042,4221.1,4220.9,5.36913324]
[1755819979591,0.3,4221.0,4220.9,5.36913324]
[1755819979805,4.5085,4221.1,4220.9,5.36913324]
[1755819980084,4.042,4221.1,4221.0,5.36910684]
[1755819980286,0.4665,4221.4,4220.8,0.71647]
[1755819980498,4.041,4221.3,4221.1,2.36903348]
[1755819981119,0.3,4221.2,4221.1,2.36903348]
[1755819982321,0.3,4221.2,4221.0,0.02369106]
[1755819982521,0.3,4221.2,4221.1,2.36905072]
[1755819982762,4.041,4221.3,4221.2,2.36899459]
[1755819982966,4.341,4221.3,4221.0,2.36910684]
[1755819983169,4.341,4221.3,4221.2,2.36899459]
[1755819983474,4.039,4221.3,4220.9,0.712436]
[1755819983622,1.823,4221.7,4221.2,0.3021]
[1755819983820,0.001,4221.7,4221.6,3.02877013]
[1755819984019,0.001,4221.7,4221.6,7.76082308]
[1755819984242,1e-08,4221.8,4221.7,6.02871402]
[1755819984452,1e-08,4221.8,4221.7,6.78581402]
[1755819985046,1e-08,4221.8,4221.7,10.83381402]
[1755819985472,1e-08,4222.3,4222.2,0.66]
[1755819985654,1e-08,4222.3,4222.2,10.37853351]
[1755819985826,0.001,4223.1,4222.7,2.36815307]
[1755819986028,0.001,4223.1,4222.7,5.6939346]
[1755819986256,0.001,4223.1,4222.7,6.12525307]
[1755819986569,0.001,4223.1,4222.7,6.83724607]
[1755819988503,0.001,4223.1,4222.7,11.54424607]
[1755819988667,0.001,4223.1,4222.7,12.93549368]
[1755819989000,0.001,4223.1,4222.7,8.88849368]
[1755819989167,0.001,4223.1,4222.7,12.93249368]
[1755819989797,0.001,4223.1,4222.7,12.47749368]
[1755819990297,0.001,4223.1,4222.7,12.93249368]
[1755819991557,0.001,4223.1,4222.7,13.10713488]
[1755819992695,0.001,4223.1,4222.7,8.60813488]
[1755819992905,0.001,4223.1,4222.7,12.65113488]
[1755819993099,0.001,4223.1,4222.7,13.10613488]
[1755819993820,0.001,4223.1,4222.7,12.65113488]
[1755819994777,0.321,4222.8,4222.7,7.64603488]
[1755819995192,0.321,4222.8,4222.7,8.30603488]
[1755819995575,0.021,4222.8,4222.7,8.60813488]
[1755819996305,0.021,4222.8,4222.7,8.30603488]
[1755819996506,0.021,4222.8,4222.7,13.10413488]
[1755819997388,0.021,4222.8,4222.7,8.60813488]
[1755819997594,0.021,4222.8,4222.7,12.64913488]
[1755819998105,0.021,4222.8,4222.7,13.11423488]
[1755819998296,1e-08,4222.8,4222.7,29.45290488]
[1755819999102,1e-08,4222.8,4222.7,27.48485588]
[1755819999697,1e-08,4222.8,4222.7,21.60430888]
[1755820000093,1e-08,4222.8,4222.7,18.01274288]
[1755820000335,1e-08,4222.8,4222.7,17.54614288]
[1755820001110,1e-08,4222.8,4222.7,13.11423488]
[1755820001405,1e-08,4222.8,4222.7,9.07323488]
[1755820001608,1e-08,4222.8,4222.7,12.64513488]
[1755820002012,0.001,4223.3,4223.2,3.0278727]
[1755820002214,0.001,4223.3,4223.2,10.67955997]
[1755820002524,0.3018,4223.3,4223.2,10.36765997]
[1755820002900,0.7557,4223.3,4223.2,10.36765997]
[1755820003095,0.7557,4223.3,4223.2,6.33065997]
[1755820004630,0.3018,4223.3,4223.2,7.04260697]
[1755820005821,0.7557,4223.3,4223.2,7.04260697]
[1755820006521,0.3018,4223.3,4223.2,7.04260697]
[1755820006831,0.001,4223.3,4223.2,7.35450697]
[1755820007137,0.001,4223.3,4223.2,11.38750697]
[1755820010531,0.001,4223.3,4223.2,11.07560697]
[1755820010700,0.3018,4223.3,4223.2,11.07560697]
[1755820010997,0.3018,4223.3,4223.2,7.04260697]
[1755820011197,0.7557,4223.3,4223.2,7.04260697]
[1755820011431,0.7557,4223.3,4223.2,6.0798197]
[1755820012435,0.001,4223.3,4223.2,7.0517197]
[1755820012612,0.3018,4223.3,4223.2,6.7398197]
[1755820012801,0.7557,4223.3,4223.2,6.7398197]
[1755820013540,0.3018,4223.3,4223.2,6.7398197]
[1755820014245,0.3018,4223.3,4223.2,8.05409627]
[1755820016824,0.001,4223.3,4223.2,8.05409627]
[1755820017650,0.001,4223.3,4223.2,8.36599627]
[1755820018249,0.001,4223.3,4223.2,8.83109627]
[1755820018830,0.001,4223.3,4223.2,8.36599627]
[1755820019835,0.7557,4223.3,4223.2,8.05409627]
[1755820020141,0.3018,4223.3,4223.2,8.05409627]
[1755820020347,0.001,4223.3,4223.2,8.05409627]
[1755820020574,0.001,4223.3,4223.2,8.36599627]
[1755820021830,0.001,4223.3,4223.2,8.05409627]
[1755820022166,0.3018,4223.3,4223.2,8.05409627]
[1755820022366,0.7557,4223.3,4223.2,8.05409627]
[1755820022573,0.7557,4223.3,4223.2,6.7398197]
[1755820022874,0.7557,4223.3,4223.2,0.711947]
[1755820023166,0.7557,4223.3,4223.2,6.0798197]
[1755820024838,0.7557,4223.3,4223.2,3.711947]
[1755820025633,0.7557,4223.3,4223.2,6.0798197]
[1755820026890,0.001,4223.3,4223.2,7.89689943]
[1755820027091,0.001,4223.3,4223.2,8.36199943]
[1755820030397,0.001,4223.3,4223.2,10.86099943]
[1755820030612,0.001,4223.3,4223.2,8.36199943]
[1755820034428,1e-08,4223.5,4223.4,3.02776057]
[1755820034631,0.001,4224.2,4223.9,0.66]
[1755820034918,0.001,4224.2,4224.1,6.31946819]
[1755820035075,0.001,4224.2,4224.1,16.91988619]
[1755820035271,0.001,4224.2,4224.1,10.80806819]
[1755820035476,0.001,4224.2,4224.1,17.50411543]
[1755820036116,0.001,4224.2,4224.1,12.31955743]
[1755820036693,0.001,4224.2,4224.1,11.56585743]
[1755820036897,0.2939,4224.2,4224.1,11.66074243]
[1755820037628,0.001,4224.2,4224.1,11.66074243]
[1755820038278,0.001,4224.2,4224.1,11.95284243]
[1755820038823,0.2939,4224.2,4224.1,11.66074243]
[1755820039721,0.7607,4224.2,4224.1,7.63374243]
[1755820039882,0.7607,4224.2,4224.1,6.97374243]
[1755820040321,0.7607,4224.2,4224.1,7.63374243]
[1755820040828,0.7607,4224.2,4224.1,4.63374243]
[1755820042131,0.7607,4224.2,4224.1,0.094885]
[1755820045209,0.001,4224.2,4224.1,0.094885]
[1755820045408,0.2939,4224.2,4224.1,2.48592687]
[1755820045597,0.7607,4224.2,4224.1,2.48592687]
[1755820050794,0.7607,4224.2,4224.1,2.46225319]
[1755820051795,0.2939,4224.2,4224.1,0.094885]
[1755820051994,0.2939,4224.2,4223.2,0.004]
[1755820051995,7.63637281,4224.2,4223.2,0.004]
[1755820052332,6.87567281,4223.8,4223.5,2.36768938]
[1755820052502,0.2929,4223.6,4223.4,2.36776057]
[1755820052699,0.2929,4223.6,4223.5,2.36770451]
[1755820053214,0.2929,4223.6,4223.4,0.712004]
[1755820053215,0.7597,4223.6,4223.4,0.712004]
[1755820053401,0.4668,4223.5,4223.2,0.004]
[1755820053602,0.2929,4223.3,4223.2,0.716004]
[1755820053803,0.7597,4223.3,4223.2,0.716004]
[1755820054103,7.39378791,4223.3,4223.2,0.716004]
[1755820054436,7.37023728,4223.3,4223.2,0.004]
[1755820055018,14.24591009,4223.3,4223.2,0.004]
[1755820056417,22.248369,4223.3,4223.2,0.004]
[1755820057006,22.248369,4223.3,4223.1,0.004]
[1755820057211,2.71518753,4223.2,4223.1,0.004]
[1755820057410,3.00808753,4223.2,4223.1,0.004]
[1755820058610,2.9845369,4223.2,4222.8,0.02]
[1755820058809,0.4653,4223.1,4222.8,0.02]
[1755820059042,0.3047,4222.9,4222.8,0.02]
[1755820059342,0.60653875,4222.9,4222.8,0.02]
[1755820059714,1.07183875,4222.9,4222.8,0.02]
[1755820059914,1.09538938,4222.9,4222.8,0.02]
[1755820061076,1.07183875,4222.9,4222.8,0.02]
[1755820061362,1.09538938,4222.9,4222.8,0.02]
[1755820062168,0.3047,4222.9,4222.8,0.02]
[1755820062374,0.02355063,4223.1,4222.8,0.3261]
[1755820062536,4.027,4222.9,4222.8,0.3261]
[1755820063144,0.02355063,4223.1,4222.8,0.3261]
[1755820063384,1.821,4223.3,4223.0,3.0]
[1755820063668,1.821,4223.3,4223.2,2.3678727]
[1755820063867,1.821,4223.3,4223.2,6.1125727]
[1755820063868,5.848,4223.3,4223.2,6.1125727]
[1755820064070,4.027,4223.3,4223.2,6.1125727]
[1755820064564,1.822,4223.9,4223.8,2.36753634]
[1755820064766,5.85,4223.9,4223.8,5.67363634]
[1755820064965,5.85,4223.9,4223.8,3.3061]
[1755820065170,1.822,4223.9,4223.8,5.67363634]
[1755820065369,1.822,4223.9,4223.8,6.91636243]
[1755820065578,4.028,4223.9,4223.8,6.91636243]
[1755820066341,4.028,4223.9,4223.8,6.47776243]
[1755820066765,0.02355063,4224.4,4224.0,2.36742424]
[1755820067062,4.029,4224.1,4224.0,5.69719848]
[1755820067268,4.029,4224.1,4224.0,6.11212424]
[1755820067564,4.029,4224.1,4224.0,6.82402624]
[1755820067768,4.029,4224.1,4224.0,7.82359511]
[1755820067963,0.001,4224.1,4224.0,7.82359511]
[1755820069305,0.001,4224.1,4224.0,8.04499511]
[1755820069452,0.001,4224.1,4224.0,8.48359511]
[1755820070358,1e-08,4224.2,4224.1,6.02736819]
[1755820070589,1e-08,4224.2,4224.1,8.54033076]
[1755820074706,1e-08,4224.2,4224.1,12.56633076]
[1755820076083,1e-08,4224.2,4224.1,12.66122476]
[1755820077292,1e-08,4224.2,4224.1,8.19662476]
[1755820081023,0.30470001,4224.2,4224.1,4.23052476]
[1755820081317,1e-08,4224.2,4224.1,2.46226219]
[1755820081617,0.77000001,4224.2,4224.1,5.46226219]
[1755820082810,0.77000001,4224.2,4224.1,2.46226219]
[1755820084423,0.77000001,4224.2,4224.1,2.48593587]
[1755820084919,1e-08,4224.2,4224.1,4.67023299]
[1755820086207,1e-08,4224.2,4224.1,4.23163299]
[1755820086402,1e-08,4224.2,4224.1,4.67023299]
[1755820088112,1e-08,4224.2,4224.1,4.23163299]
[1755820088507,0.31160001,4224.2,4224.1,3.92553299]
[1755820088829,0.77860001,4224.2,4224.1,3.12226219]
[1755820089616,0.31160001,4224.2,4224.1,3.12226219]
[1755820089920,0.31160001,4224.2,4224.1,2.46226219]
[1755820090126,0.77860001,4224.2,4224.1,2.46226219]
[1755820090612,0.77860001,4224.2,4224.1,0.094894]
[1755820090813,0.77860001,4224.2,4224.1,5.46226219]
[1755820091043,0.77860001,4224.2,4224.1,2.46226219]
[1755820091848,0.77860001,4224.2,4224.1,2.48593587]
[1755820092435,0.77860001,4224.2,4224.1,0.094894]
[1755820093141,0.77860001,4224.2,4224.1,0.098894]
[1755820093650,1.06221064,4224.2,4224.1,0.098894]
[1755820094466,5.08621064,4224.2,4224.1,0.098894]
[1755820094642,5.06266001,4224.2,4224.1,0.098894]
[1755820095160,1.03866001,4224.2,4224.1,0.098894]
[1755820095361,5.08621064,4224.2,4224.1,0.098894]
[1755820095540,1.03866001,4224.2,4224.1,0.098894]
[1755820095735,5.08621064,4224.2,4224.1,0.098894]
[1755820095941,5.06266001,4224.2,4224.1,0.098894]
[1755820097359,5.06266001,4224.2,4224.1,0.004]
[1755820102248,1.03866001,4224.2,4224.1,0.004]
[1755820102449,4.82615064,4224.2,4224.1,0.004]
[1755820102748,4.80260001,4224.2,4224.1,0.004]
[1755820104187,0.77860001,4224.2,4224.1,0.004]
[1755820104389,4.82615064,4224.2,4224.1,0.004]
[1755820104713,0.31160001,4224.2,4224.1,0.004]
[1755820104978,0.02355064,4224.2,4224.1,0.004]
[1755820105192,0.02355064,4224.2,4224.1,0.3196]
[1755820105351,4.02400001,4224.2,4224.1,0.7847]
[1755820105551,5.41075064,4224.2,4224.1,0.004]
[1755820105754,5.38720001,4224.2,4224.1,0.004]
[1755820106449,4.92020001,4224.2,4224.1,0.004]
[1755820106648,4.60860001,4224.2,4224.1,0.004]
[1755820106844,4.92020001,4224.2,4224.1,0.004]
[1755820107085,5.38720001,4224.2,4224.1,0.004]
[1755820107489,4.92120001,4224.2,4224.1,0.004]
[1755820107852,1e-08,4224.2,4224.1,0.3196]
[1755820108074,4.02400001,4224.2,4224.1,0.7847]
[1755820108776,4.02400001,4224.2,4224.1,0.3196]
[1755820108987,1e-08,4224.2,4224.1,3.3196]
[1755820109154,4.02400001,4224.2,4224.1,0.3196]
[1755820110990,4.02400001,4224.2,4224.1,1.031521]
[1755820111149,4.35915064,4224.2,4224.1,0.715921]
[1755820111354,6.17860546,4224.2,4224.1,0.004]
[1755820111591,6.15505483,4224.2,4224.1,0.004]
[1755820113580,5.68805483,4224.2,4224.1,0.004]
[1755820114078,6.15505483,4224.2,4224.1,0.004]
[1755820115809,2.13105483,4224.2,4224.1,0.004]
[1755820116012,6.17860546,4224.2,4224.1,0.004]
[1755820116195,6.15505483,4224.2,4224.1,0.004]
[1755820119919,2.13105483,4224.2,4224.1,0.004]
[1755820120119,6.17860546,4224.2,4224.1,0.004]
[1755820120419,2.13105483,4224.2,4224.1,0.004]
[1755820120615,6.17860546,4224.2,4224.1,0.004]
[1755820120797,6.15505483,4224.2,4224.1,0.004]
[1755820126034,2.13105483,4224.2,4224.1,0.004]
[1755820126229,6.17860546,4224.2,4224.1,0.004]
[1755820126437,6.15505483,4224.2,4224.1,0.004]
[1755820129440,2.13105483,4224.2,4224.1,0.004]
[1755820129641,6.17760546,4224.2,4224.1,0.004]
[1755820129942,6.15405483,4224.2,4224.1,0.004]
[1755820131239,5.68705483,4224.2,4224.1,0.004]
[1755820132040,6.14435483,4224.2,4224.1,0.004]
[1755820133805,4.02300001,4224.2,4224.1,6.14576819]
[1755820134017,4.02300001,4224.2,4224.1,3.7784]
[1755820134236,4.02300001,4224.2,4224.1,4.490313]
[1755820134439,4.02300001,4224.2,4224.1,6.85768119]
[1755820134440,1e-08,4224.2,4224.1,6.85768119]
[1755820134807,4.02300001,4224.2,4224.1,6.85768119]
[1755820135013,4.02300001,4224.2,4224.1,7.78019471]
[1755820136058,4.02300001,4224.2,4224.1,5.41282652]
[1755820136241,4.04655064,4224.2,4224.1,4.024113]
[1755820136444,4.34535064,4224.2,4224.1,3.715913]
[1755820136610,4.80265064,4224.2,4224.1,0.715913]
[1755820136812,4.77910001,4224.2,4224.1,0.004]
[1755820140731,4.32080001,4224.2,4224.1,0.004]
[1755820141750,4.34435064,4224.2,4224.1,0.004]
[1755820141951,5.69429385,4224.2,4224.1,0.004]
[1755820142117,6.12804322,4224.2,4224.1,0.004]
[1755820144218,6.63137943,4224.2,4224.1,0.004]
[1755820146656,6.12804322,4224.2,4224.1,0.004]
[1755820147351,6.12804322,4224.2,4223.8,0.712146]
[1755820147352,6.84959566,4224.2,4223.8,0.712146]
[1755820147516,6.87578141,4223.9,4223.6,0.004]
[1755820147724,0.2988,4223.7,4223.6,0.004]
[1755820147946,0.82534161,4223.7,4223.6,0.004]
[1755820148125,1.28774161,4223.7,4223.6,0.004]
[1755820148524,1.28774161,4223.7,4223.2,0.004]
[1755820148731,6.87578141,4223.3,4223.2,0.004]
[1755820148951,13.01948141,4223.3,4223.2,0.004]
[1755820149257,13.48188141,4223.3,4223.2,0.004]
[1755820150269,13.98431219,4223.3,4222.8,0.02]
[1755820150430,6.87578141,4222.9,4222.8,0.02]
[1755820150630,11.98389769,4222.9,4222.8,0.02]
[1755820150845,12.44629769,4222.9,4222.8,0.02]
[1755820153154,4.80841628,4222.9,4222.8,0.3346]
[1755820153354,6.87578141,4223.0,4222.8,0.3346]
[1755820153548,4.04555063,4222.9,4222.8,0.3346]
[1755820154339,5.694,4223.1,4222.8,0.3346]
[1755820154537,4.04555063,4223.0,4222.8,0.7804]
[1755820154774,1.822,4223.3,4222.9,0.4458]
[1755820154958,1.822,4223.3,4222.9,1.09491387]
[1755820155282,4.022,4223.2,4223.0,0.4458]
[1755820155570,1.822,4223.3,4223.2,5.6824727]
[1755820155740,5.844,4223.3,4223.2,5.6824727]
[1755820155932,5.844,4223.3,4223.2,6.1282727]
[1755820156138,1.822,4223.3,4223.2,6.97789733]
[1755820156338,5.844,4223.3,4223.2,6.97789733]
[1755820156977,1.822,4223.3,4223.2,6.97789733]
[1755820157139,5.844,4223.3,4223.2,6.97789733]
[1755820157338,21.01011503,4223.3,4222.8,0.02]
[1755820157549,0.02355063,4223.2,4222.8,0.4658]
[1755820157750,0.02355063,4223.2,4222.8,0.02]
[1755820157949,0.2997,4222.9,4222.8,0.02]
[1755820158242,4.80765063,4222.9,4222.8,0.02]
[1755820158561,4.3217,4222.9,4222.8,0.02]
[1755820160081,4.3217,4222.9,4222.8,0.024]
[1755820160945,0.2997,4222.9,4222.8,0.024]
[1755820161257,4.3217,4222.9,4222.8,0.024]
[1755820162288,4.3217,4222.9,4222.8,0.7844]
[1755820162289,4.022,4222.9,4222.8,0.7844]
[1755820162749,1.823,4223.3,4222.8,0.7844]
[1755820162941,4.04555063,4223.2,4222.8,0.3386]
[1755820163141,4.04555063,4223.2,4222.8,0.024]
[1755820163678,4.022,4223.1,4222.8,0.024]
[1755820163974,0.02355063,4223.0,4222.8,0.024]
[1755820164178,1.823,4223.3,4222.9,0.3146]
[1755820164388,4.04555063,4223.2,4222.9,0.3146]
[1755820164558,4.04555063,4223.2,4222.8,0.024]
[1755820164559,0.2997,4223.0,4222.8,0.024]
[1755820164757,4.04555063,4222.9,4222.8,0.024]
[1755820166180,0.02355063,4222.9,4222.8,0.024]
[1755820166489,4.34525063,4222.9,4222.8,0.024]
[1755820166853,4.80765063,4222.9,4222.8,0.024]
[1755820167049,4.7841,4222.9,4222.8,0.024]
[1755820167248,6.7491515,4222.9,4222.8,0.024]
[1755820172246,6.2867515,4222.9,4222.8,0.024]
[1755820173951,5.9870515,4222.9,4222.8,0.3386]
[1755820174152,4.022,4222.9,4222.8,0.3386]
[1755820174558,4.022,4222.9,4222.8,0.7844]
[1755820174771,4.021,4222.9,4222.8,0.7844]
[1755820175089,0.02355063,4223.2,4222.8,3.7844]
[1755820175254,4.022,4223.1,4222.9,0.95111495]
[1755820175460,4.022,4223.1,4223.0,0.7604]
[1755820175973,0.02355063,4223.2,4223.0,0.3146]
[1755820176178,4.021,4223.1,4222.9,0.712111]
[1755820176354,0.68820569,4223.0,4222.9,0.712111]
[1755820176557,0.68820569,4223.0,4222.8,0.024]
[1755820176558,1.14680569,4223.0,4222.8,0.024]
[1755820176874,4.4796,4222.9,4222.8,0.024]
[1755820177188,4.5613,4222.9,4222.8,0.024]
[1755820178287,19.44436064,4222.9,4222.8,0.024]
[1755820178589,21.44747221,4222.9,4222.8,0.024]
[1755820179995,17.92930925,4222.9,4222.8,0.024]
[1755820180196,6.10581157,4222.9,4222.8,0.024]
[1755820180395,2.52041157,4222.9,4222.8,0.024]
[1755820180601,6.5649622,4222.9,4222.8,0.024]
[1755820180901,6.54141157,4222.9,4222.8,0.024]
[1755820181132,6.54141157,4222.9,4222.3,0.004]
[1755820181133,0.66,4222.6,4219.8,0.024]
[1755820181271,0.66,4221.9,4219.9,0.4565]
[1755820181467,41.4145888,4221.9,4220.8,0.119016]
[1755820181787,14.88306064,4220.9,4220.8,0.024]
[1755820181989,22.23584516,4220.9,4220.8,0.024]
[1755820182166,3.57278452,4220.9,4220.8,0.024]
[1755820182500,6.1366,4220.9,4220.8,0.024]
[1755820183269,6.3796,4220.9,4220.8,0.024]
[1755820184297,6.1366,4220.9,4220.8,0.024]
[1755820184602,6.3796,4220.9,4220.8,0.024]
[1755820185097,6.3816,4220.9,4220.8,0.024]
[1755820185288,7.94153958,4220.9,4220.8,0.024]
[1755820185493,7.64993958,4220.9,4220.8,0.024]
[1755820185687,3.91603958,4220.9,4220.8,0.024]
[1755820185998,7.96459021,4220.9,4220.8,0.024]
[1755820186163,7.94103958,4220.9,4220.8,0.024]
[1755820186806,3.91603958,4220.9,4220.8,0.024]
[1755820186978,1.822,4220.9,4220.8,0.315]
[1755820187176,1.822,4220.9,4220.8,0.7675]
[1755820187397,5.847,4220.9,4220.8,0.315]
[1755820187593,5.847,4220.9,4220.8,0.024]
[1755820187594,6.5322,4220.9,4220.8,0.024]
[1755820188119,6.4317,4220.9,4220.8,0.315]
[1755820188297,5.847,4220.9,4220.8,0.315]
[1755820189023,5.847,4220.9,4220.8,0.7675]
[1755820189525,5.847,4220.9,4220.8,0.024]
[1755820189737,5.9475,4220.9,4220.8,0.024]
[1755820189914,6.3798,4220.9,4220.8,0.024]
[1755820190105,8.50608606,4220.9,4220.8,0.024]
[1755820190726,8.50608606,4220.9,4220.3,0.004]
[1755820190896,0.45585063,4220.8,4220.3,0.004]
[1755820191226,4.1318,4220.7,4220.3,0.004]
[1755820191391,0.1038,4220.7,4220.3,0.004]
[1755820191588,0.02355063,4220.8,4220.6,0.7475]
[1755820191821,4.029,4220.7,4220.6,0.7475]
[1755820192022,4.028,4220.7,4220.6,0.7475]
[1755820192234,1.822,4220.9,4220.6,0.84653]
[1755820192390,4.05455063,4220.8,4220.6,0.39403]
[1755820193795,1.822,4220.9,4220.7,3.4525]
[1755820193992,1.822,4220.9,4220.8,0.7435]
[1755820194197,5.855,4220.9,4220.8,0.7435]
[1755820195129,1.822,4220.9,4220.8,0.7435]
[1755820195330,5.855,4220.9,4220.8,0.7435]
[1755820196338,5.855,4220.9,4220.8,0.291]
[1755820198132,5.855,4220.9,4220.8,0.7435]
[1755820199535,5.855,4220.9,4220.8,0.291]
[1755820199727,1.822,4220.9,4220.8,0.291]
[1755820199922,5.852,4220.9,4220.8,0.291]
[1755820200122,1.822,4220.9,4220.8,0.291]
[1755820200324,5.852,4220.9,4220.7,0.712545]
[1755820200507,5.852,4220.9,4220.8,0.291]
[1755820200703,1.823,4221.6,4220.9,0.66]
[1755820200938,1.823,4221.6,4221.5,5.65982624]
[1755820201339,1.823,4221.6,4221.5,6.11232624]
[1755820201544,5.855,4221.6,4221.5,6.11232624]
[1755820202115,5.855,4221.6,4221.5,6.82466224]
[1755820202537,1.823,4221.6,4221.5,6.82466224]
[1755820202716,5.854,4221.6,4221.5,7.74402183]
[1755820203749,4.031,4221.6,4221.5,7.74402183]
[1755820204446,0.001,4221.7,4221.6,5.36877013]
[1755820204646,0.001,4221.7,4221.6,6.11227013]
[1755820204815,4.03,4221.7,4221.6,6.11227013]
[1755820205017,0.001,4221.7,4221.6,8.0204427]
[1755820205213,4.03,4221.7,4221.6,8.0204427]
[1755820205457,4.03,4221.7,4221.6,1.99167257]
[1755820205752,4.03,4221.7,4221.6,6.11227013]
[1755820206360,4.03,4221.7,4221.6,3.291]
[1755820206535,4.03,4221.7,4221.6,5.65977013]
[1755820208067,4.03,4221.7,4221.6,3.0]
[1755820208248,4.03,4221.7,4221.6,5.36877013]
[1755820208444,4.03,4221.7,4221.6,5.67247013]
[1755820209055,4.03,4221.7,4221.6,3.3037]
[1755820209772,4.03,4221.7,4221.6,5.67247013]
[1755820210278,4.03,4221.7,4221.6,3.3037]
[1755820210577,4.03,4221.7,4221.6,5.67247013]
[1755820212485,4.03,4221.7,4221.6,3.0]
[1755820213370,4.03,4221.7,4221.6,5.36877013]
[1755820213573,4.03,4221.7,4221.6,3.0]
[1755820213743,4.03,4221.7,4221.6,5.67247013]
[1755820214270,0.001,4221.7,4221.6,5.67247013]
[1755820214588,4.025,4221.7,4221.6,5.67247013]
[1755820215140,0.001,4221.7,4221.6,6.4766052]
[1755820215339,4.024,4221.7,4221.6,8.3055762]
[1755820215778,0.001,4221.7,4221.6,8.3055762]